lending/lending_fUSD_20240830
["ID","MTS","AMOUNT","RATE_DAILY","PERIOD"]
[336706129,1725048638288,-2630.72074628,0.00010972,2]
[336706310,1725048640277,-434.17972381,0.00010972,2]
[336706312,1725048640292,-666.09952991,0.00010972,2]
[336706314,1725048640302,-1144.0,0.00010972,2]
[336706316,1725048640312,-1078.0,0.00010972,2]
[336706318,1725048640321,-113.71479505,0.00010973,2]
[336706320,1725048640333,-16715.9755163,0.00010973,2]
[336706728,1725048644456,-823.78370028,0.00010972,2]
[336706855,1725048646004,-8571.89705668,0.00010972,2]
[336706857,1725048646015,-2015.57078776,0.00010972,2]
[336706862,1725048646056,-3017.17189591,0.00010972,2]
[336706864,1725048646067,-8849.56618415,0.00010972,2]
[336706866,1725048646078,-7622.55047678,0.00010972,2]
[336706868,1725048646089,-814.06644747,0.00010972,2]
[336706870,1725048646100,-2318.42279138,0.00010972,2]
[336706872,1725048646113,-193135.12879708,0.00010972,2]
[336706874,1725048646126,-43108.08925,0.00010972,2]
[336706877,1725048646137,-2210.0,0.00010972,2]
[336706880,1725048646168,-607.24193803,0.00010972,2]
[336706882,1725048646178,-453.08776319,0.00010972,2]
[336706885,1725048646190,-4970.41894437,0.00010972,2]
[336706887,1725048646200,-5177.5175671,0.00010972,2]
[336706889,1725048646213,-1569.25968238,0.00010972,2]
[336706891,1725048646226,-726.61643313,0.00010972,2]
[336706894,1725048646238,-307.1550532,0.00010972,2]
[336706896,1725048646251,-21079.22809882,0.00010972,2]
[336706898,1725048646263,-1576.40621,0.00010972,2]
[336706901,1725048646277,-20537.74473871,0.00010972,2]
[336706903,1725048646287,-1533.09096458,0.00010972,2]
[336706905,1725048646298,-470.22347517,0.00010972,2]
[336706907,1725048646311,-379.89623438,0.00010972,2]
[336706909,1725048646322,-959.66047797,0.00010972,2]
[336707524,1725048653948,1734.35,0.00010886,2]
[336707525,1725048806845,191.84,8.887e-05,2]
[336707526,1725048817981,250.0,0.00010728,2]
[336707527,1725048819803,500.0,0.00010799,2]
[336707528,1725048871558,171.7,0.00010959,2]
[336707529,1725048874251,222.68,0.00010675,2]
[336707531,1725049031488,153.65,0.00010698,2]
[336707532,1725049037846,545.55,0.00010712,2]
[336707533,1725049213281,3294.1747,0.00010959,2]
[336707534,1725049227446,200.0,0.00010665,2]
[336707535,1725049306510,182.24,8.873e-05,2]
[336707536,1725049335606,1050.0,0.0001,2]
[336707537,1725049355008,250.0,0.00010736,2]
[336707538,1725049388828,221.85,0.00010745,2]
[336707539,1725049420946,500.0,0.0001065,2]
[336707540,1725049530430,563.56,0.00010509,2]
[336707550,1725049832105,-300.0,0.00010971,2]
[336707552,1725049832115,-150.0,0.00010971,2]
[336707554,1725049832123,-150.30944536,0.00010972,2]
[336707556,1725049832133,-139.38684212,0.00010972,2]
[336707562,1725049832162,-966.43463374,0.00010972,2]
[336707566,1725049832173,-463.61871879,0.00010972,2]
[336707568,1725049832184,-891.55523507,0.00010972,2]
[336707570,1725049832193,-534.0,0.00010972,2]
[336707572,1725049832202,-1169.89915894,0.00010973,2]
[336707581,1725049832285,-4781.02268136,0.00010973,2]
[336707583,1725049832295,-593.55351269,0.00010973,2]
[336707585,1725049832306,-912.38802639,0.00010973,2]
[336707587,1725049832317,-182386.50200892,0.00010973,2]
[336707590,1725049832328,-276849.6817854,0.00010973,2]
[336707592,1725049832339,-544.0998858,0.00010973,2]
[336707594,1725049832350,-315.04,0.00010973,2]
[336707596,1725049832369,-925.07724057,0.00010973,2]
[336707597,1725049832379,-2414.65594375,0.00010973,2]
[336707603,1725049838349,-426.45507876,0.0001097,2]
[336707604,1725049838358,-222.56992124,0.00010972,2]
[336707605,1725049838407,-311.93866708,0.00010972,2]
[336707606,1725049838519,-1229.27728724,0.00010972,2]
[336707607,1725049838531,-3867.4334142,0.00010972,2]
[336707608,1725049838543,-620.79838578,0.00010972,2]
[336707609,1725049838907,-291626.96869753,0.00010972,2]
[336707612,1725049840213,-1129.10829927,0.00010972,2]
[336707613,1725049840226,-10000.0,0.00010972,2]
[336707614,1725049840271,-5063.96244553,0.00010972,2]
[336707615,1725049840283,-727.40483639,0.00010972,2]
[336707616,1725049840330,-2652.66969651,0.00010972,2]
[336707617,1725049840388,-72583.92126246,0.00010972,2]
[336707618,1725049840397,-66937.29408519,0.00010973,2]
[336707619,1725049840447,-817.86703771,0.00010973,2]
[336707620,1725049840459,-968.08777415,0.00010973,2]
[336707621,1725049840506,-2437.39358701,0.00010973,2]
[336707622,1725049840567,-140831.78781609,0.00010973,2]
[336707984,1725049846653,-7975.8411061,0.00010973,2]
[336707985,1725049846672,-120884.00121197,0.00010973,2]
[336707986,1725049860304,250.0,0.00010676,2]
[336707989,1725049996119,173.12,8.657e-05,2]
[336707990,1725049996337,173.12,0.0001092,2]
[336707991,1725050018707,500.0,0.00010591,2]
[336707992,1725050043491,549.15,0.00010512,2]
[336707993,1725050154644,746.89808,0.0001086,2]
[336707994,1725050363537,250.0,0.00010315,2]
[336707995,1725050425831,178.14,0.00010315,2]
[336707996,1725050474751,155.8,8.353e-05,2]
[336707997,1725050475164,155.8,0.00010617,2]
[336707998,1725050502765,399.25665,0.0001086,2]
[336707999,1725050585943,191.25,0.00010959,2]
[336708001,1725050616965,500.0,0.00010871,2]
[336708002,1725050708947,150.0,0.00010932,2]
[336708003,1725050764217,1000.0,0.00010259,2]
[336708004,1725050851491,622.41507,0.0001086,2]
[336708007,1725051003800,250.0,0.00010253,2]
[336708008,1725051011228,155.8,8.367e-05,2]
[336708009,1725051011462,155.8,0.00010897,2]
[336708010,1725051030886,213.11,0.00010364,2]
[336708013,1725051032320,-150.81,0.00010962,2]
[336708014,1725051032333,-240.52638252,0.0001097,2]
[336708015,1725051032344,-150.0,0.00010971,2]
[336708016,1725051032356,-500.0,0.00010972,2]
[336708017,1725051032369,-500.0,0.00010972,2]
[336708018,1725051032381,-247.58720549,0.00010972,2]
[336708019,1725051032394,-103.03770935,0.00010972,2]
[336708020,1725051032408,-396.96229065,0.00010972,2]
[336708021,1725051032419,-29.03191254,0.00010972,2]
[336708022,1725051032439,-470.96808746,0.00010972,2]
[336708023,1725051032451,-500.0,0.00010972,2]
[336708024,1725051032463,-500.0,0.00010972,2]
[336708025,1725051032476,-500.0,0.00010972,2]
[336708026,1725051032486,-410.48517877,0.00010972,2]
[336708027,1725051032497,-500.0,0.00010972,2]
[336708028,1725051032508,-500.0,0.00010972,2]
[336708029,1725051032519,-196.64648908,0.00010972,2]
[336708030,1725051032531,-420.6543901,0.00010972,2]
[336708031,1725051032543,-500.0,0.00010972,2]
[336708033,1725051032557,-500.0,0.00010972,2]
[336708035,1725051032571,-56.15166229,0.00010972,2]
[336708036,1725051032587,-443.84833771,0.00010972,2]
[336708037,1725051032598,-525.0,0.00010972,2]
[336708038,1725051032610,-1392.52205186,0.00010972,2]
[336708039,1725051032622,-3483.41286811,0.00010972,2]
[336708040,1725051032637,-1026.39824093,0.00010972,2]
[336708041,1725051032650,-1015.81727259,0.00010972,2]
[336708044,1725051032672,-9247.27175072,0.00010972,2]
[336708046,1725051032686,-530.84773883,0.00010972,2]
[336708048,1725051032700,-3899.68620111,0.00010972,2]
[336708060,1725051038836,-644.68559983,0.00010972,2]
[336708063,1725051038848,-1016.61,0.00010972,2]
[336708066,1725051039551,-1715.6453042,0.00010972,2]
[336708067,1725051039593,-478.31959918,0.00010972,2]
[336708068,1725051039641,-818.775,0.00010972,2]
[336708069,1725051039653,-395.54608418,0.00010972,2]
[336708070,1725051039667,-72345.88543812,0.00010972,2]
[336708072,1725051040362,-1119.12373939,0.00010972,2]
[336708073,1725051040376,-4132.184712,0.00010972,2]
[336708074,1725051040418,-69816.14851964,0.00010972,2]
[336708075,1725051040430,-112951.19193117,0.00010972,2]
[336708076,1725051040439,-1304.694,0.00010972,2]
[336708077,1725051040449,-621.0,0.00010972,2]
[336708078,1725051040459,-78078.19171277,0.00010972,2]
[336708079,1725051040474,-2439.14814662,0.00010972,2]
[336708080,1725051040486,-552.33090042,0.00010972,2]
[336708081,1725051040505,-1781.44982976,0.00010972,2]
[336708082,1725051040516,-1862.3157515,0.00010972,2]
[336708083,1725051040539,-300.0495264,0.00010972,2]
[336708084,1725051040599,-164896.09140731,0.00010972,2]
[336708085,1725051040609,-5975099.65247971,0.00010973,2]
[336708086,1725051040621,-134311.57088101,0.00010973,2]
[336708087,1725051040633,-474.621015,0.00010973,2]
[336708088,1725051040644,-503.33,0.00010973,2]
[336708089,1725051040655,-7144.41105157,0.00010973,2]
[336708091,1725051040670,-5227.0184741,0.00010973,2]
[336708092,1725051040681,-429.15446819,0.00010973,2]
[336708093,1725051040695,-70210.45250724,0.00010973,2]
[336708228,1725051043351,-6786.7418832,0.00010973,2]
[336708231,1725051043407,-1160.54511197,0.00010973,2]
[336708232,1725051043418,-1795.66259684,0.00010973,2]
[336708233,1725051043429,-1047.40318262,0.00010973,2]
[336708234,1725051043440,-3563.9999998,0.00010973,2]
[336708235,1725051043451,-2829.58704795,0.00010973,2]
[336708236,1725051043468,-7654.86113804,0.00010973,2]
[336708237,1725051043479,-36597.54571064,0.00010973,2]
[336708238,1725051043492,-6020.00259753,0.00010973,2]
[336708239,1725051043502,-383.53475,0.00010973,2]
[336708240,1725051043516,-18847.96200157,0.00010973,2]
[336708241,1725051043528,-1124.49542968,0.00010973,2]
[336708242,1725051043540,-9245.25,0.00010973,2]
[336708340,1725051044675,-511.74477419,0.00010973,2]
[336708344,1725051044698,-100173.0172119,0.00010973,2]
[336708346,1725051044710,-3011.29539032,0.00010973,2]
[336708348,1725051044722,-500.0,0.00010973,2]
[336708351,1725051044737,-4783.16,0.00010973,2]
[336708353,1725051044754,-22850.13228136,0.00010973,2]
[336708355,1725051044764,-26275.86125951,0.00010973,2]
[336708357,1725051044775,-298.72,0.00010973,2]
[336708359,1725051044786,-469.133491,0.00010973,2]
[336708361,1725051044797,-2971.4261541,0.00010973,2]
[336708363,1725051044808,-3529.11975385,0.00010973,2]
[336708365,1725051044819,-3397.76989014,0.00010973,2]
[336708367,1725051044831,-1269.05719409,0.00010973,2]
[336708370,1725051044842,-4045.835814,0.00010973,2]
[336708489,1725051046347,-332.78,0.00010973,2]
[336708491,1725051046359,-1269.51983804,0.00010973,2]
[336708493,1725051046375,-1130.07324647,0.00010973,2]
[336708496,1725051046387,-407.37144464,0.00010973,2]
[336708499,1725051046410,-10019.09632223,0.00010973,2]
[336708501,1725051046421,-1583.93695145,0.00010973,2]
[336708503,1725051046433,-500.0,0.00010973,2]
[336708506,1725051046523,-277321.30166555,0.00010973,2]
[336708507,1725051046535,-629.89200498,0.00010973,2]
[336708508,1725051046547,-2026.77504163,0.00010973,2]
[336708509,1725051046585,-1131.90187909,0.00010973,2]
[336708510,1725051046598,-96871.0195768,0.00010973,2]
[336708511,1725051046609,-1082.61991605,0.00010973,2]
[336708517,1725051047391,-264.37005527,0.00010973,2]
[336708518,1725051047403,-5164.03867556,0.00010973,2]
[336708519,1725051047414,-389.71569304,0.00010973,2]
[336708520,1725051047425,-1101.17387815,0.00010973,2]
[336708521,1725051047436,-1144.25759762,0.00010973,2]
[336708522,1725051159876,1050.0,0.0001,2]
[336708523,1725051178218,10000.0,0.00010426,2]
[336708524,1725051195169,500.0,0.00010959,2]
[336708525,1725051204707,332.71388,0.0001086,2]
[336708526,1725051216093,500.0,0.00010343,2]
[336708527,1725051217599,10000.0,0.00010426,2]
[336708528,1725051222207,3672.365,0.00010873,2]
[336708529,1725051230290,1076.3862419,0.00010656,2]
[336708530,1725051363584,343.59935213,0.00010899,2]
[336708531,1725051373268,1595.38836946,0.00010681,2]
[336708532,1725051388448,1819.0,0.000109,2]
[336708533,1725051398314,1000.0,0.00010447,2]
[336708534,1725051495238,491.95327024,0.00010873,2]
[336708535,1725051520596,201.93,8.527e-05,2]
[336708536,1725051520839,201.93,0.00010791,2]
[336708537,1725051546405,250.0,0.00010433,2]
[336708538,1725051554943,518.67922,0.0001086,2]
[336708539,1725051587246,400.0,0.00024,120]
[336708540,1725051622325,179.58,0.00010234,2]
[336708541,1725051640047,217.5,0.00010233,2]
[336708542,1725051644950,1078.0,0.00010899,2]
[336708543,1725051650991,172.36,0.00010959,2]
[336708544,1725051652816,272.498,0.00010899,2]
[336708546,1725051656408,930.0,0.00010899,2]
[336708547,1725051791701,309.23941689,0.00010899,2]
[336708548,1725051796102,155.04,0.0001018,2]
[336708549,1725051819185,500.0,0.00010812,2]
[336708550,1725051890946,160.51470132,0.00010873,2]
[336708551,1725051901630,277.26157,0.0001086,2]
[336708552,1725051925601,200.0,0.00010171,2]
[336708553,1725052027590,181.73,8.242e-05,2]
[336708554,1725052027807,181.73,0.00010506,2]
[336708555,1725052080240,250.0,0.00010139,2]
[336708556,1725052111447,503.20876004,0.0001099,120]
[336708557,1725052146190,186.01,0.00010152,2]
[336708558,1725052217001,278.31547521,0.00010899,2]
[336708560,1725052231555,-150.0,0.00010971,2]
[336708561,1725052231564,-810.0,0.00010972,2]
[336708562,1725052231574,-557.0,0.00010972,2]
[336708563,1725052231584,-1898.0,0.00010972,2]
[336708564,1725052231594,-552.0,0.00010972,2]
[336708565,1725052231604,-248.0,0.00010972,2]
[336708566,1725052231614,-3322.0,0.00010972,2]
[336708567,1725052231623,-1139.0,0.00010972,2]
[336708568,1725052231632,-881.364,0.00010972,2]
[336708569,1725052231642,-3731.0,0.00010972,2]
[336708570,1725052231651,-1144.0,0.00010972,2]
[336708571,1725052231663,-4542.85134636,0.00010972,2]
[336708647,1725052237607,-1309.14865364,0.00010972,2]
[336708648,1725052237617,-289.0,0.00010972,2]
[336708649,1725052237626,-88.21447998,0.00010972,2]
[336708650,1725052237664,-989.78552002,0.00010972,2]
[336708651,1725052237674,-398.31001445,0.00010972,2]
[336708652,1725052237886,-30.40445536,0.00010972,2]
[336708653,1725052237895,-957.05298389,0.00010972,2]
[336708654,1725052237907,-5002.32398941,0.00010972,2]
[336708655,1725052237917,-2665.9636799,0.00010972,2]
[336708656,1725052237927,-581.0,0.00010972,2]
[336708657,1725052237936,-1503.53230708,0.00010972,2]
[336708672,1725052239588,-992.57555336,0.00010972,2]
[336708673,1725052239600,-1000.17665365,0.00010972,2]
[336708674,1725052239611,-1479.347546,0.00010972,2]
[336708675,1725052239623,-3075.71000017,0.00010972,2]
[336708676,1725052239705,-524.66514586,0.00010972,2]
[336708677,1725052239716,-1056.7785687,0.00010972,2]
[336708678,1725052239727,-1273.216,0.00010972,2]
[336708679,1725052239738,-460.56973873,0.00010972,2]
[336708680,1725052239764,-2466.13155549,0.00010972,2]
[336708683,1725052240036,-7260.16392051,0.00010972,2]
[336708684,1725052240054,-863.52814598,0.00010972,2]
[336708685,1725052240065,-1034.355,0.00010972,2]
[336708686,1725052240075,-583.93054097,0.00010972,2]
[336708687,1725052240086,-971.108,0.00010972,2]
[336708688,1725052240098,-1626.45291562,0.00010972,2]
[336708689,1725052240110,-1053.23231021,0.00010972,2]
[336708690,1725052240123,-1504.411741,0.00010972,2]
[336708691,1725052240135,-8215.81430112,0.00010972,2]
[336708696,1725052242537,-7155.68224347,0.00010972,2]
[336708703,1725052244304,-109712.81102615,0.00010972,2]
[336708704,1725052244314,-36571.14358924,0.00010973,2]
[336708705,1725052244324,-275.452,0.00010973,2]
[336708706,1725052244335,-6014.54607032,0.00010973,2]
[336708707,1725052244347,-1319.70408273,0.00010973,2]
[336708708,1725052245518,-2826.19400833,0.00010973,2]
[336708709,1725052245530,-1026.0,0.00010973,2]
[336708710,1725052245542,-10996.24497985,0.00010973,2]
[336708711,1725052245553,-254.584,0.00010973,2]
[336708712,1725052245583,-1122.59869064,0.00010973,2]
[336708713,1725052245594,-19662.37430606,0.00010973,2]
[336708714,1725052245708,-2265.95848343,0.00010973,2]
[336708715,1725052245775,-1011.36027468,0.00010973,2]
[336708716,1725052245788,-37811.35699527,0.00010973,2]
[336708717,1725052245799,-642.02788246,0.00010973,2]
[336708718,1725052245810,-315.00000008,0.00010973,2]
[336708719,1725052245821,-4481.46949273,0.00010973,2]
[336708720,1725052245832,-726.52366915,0.00010973,2]
[336708721,1725052245843,-965.71228603,0.00010973,2]
[336708722,1725052245856,-258.90026698,0.00010973,2]
[336708723,1725052245869,-3567.11591837,0.00010973,2]
[336708724,1725052245883,-253.90374581,0.00010973,2]
[336708725,1725052245896,-1556.95999997,0.00010973,2]
[336708726,1725052245910,-6609.7734914,0.00010973,2]
[336708727,1725052248877,10000.0,0.00010424,2]
[336708728,1725052249700,432.23269,0.0001086,2]
[336708730,1725052267281,2022.4053,0.00010872,2]
[336708731,1725052273064,7833.36210661,0.00010424,2]
[336708732,1725052273225,12489.6622,0.00010872,2]
[336708733,1725052279894,448.143,0.00010872,2]
[336708734,1725052281365,429.98,0.00010229,2]
[336708735,1725052282865,10000.0,0.00010424,2]
[336708736,1725052283613,2036.64774412,0.00010424,2]
[336708737,1725052288703,245000.0,0.00010872,2]
[336708738,1725052298163,260.3744,0.00010872,2]
[336708739,1725052303800,500.0,0.00010873,2]
[336708740,1725052316490,2000.0,0.00010959,2]
[336708741,1725052316807,1000.0,0.00010872,2]
[336708742,1725052317628,195.00444112,0.00010873,2]
[336708743,1725052318760,2000.0,0.000104,2]
[336708744,1725052328811,2500.0,0.00010873,2]
[336708745,1725052333345,285.85,0.00010199,2]
[336708746,1725052334945,1261.8627,0.00010872,2]
[336708747,1725052352907,1438.5588,0.00010873,2]
[336708748,1725052377796,72679.4639,0.00010872,2]
[336708749,1725052397418,500.0,0.00010959,2]
[336708750,1725052400231,250.0,0.00010959,2]
[336708751,1725052422660,500.0,0.00010785,2]
[336708752,1725052528981,8296.79,0.00010183,2]
[336708753,1725052532849,214.04,8.265e-05,2]
[336708754,1725052533031,214.04,0.00010529,2]
[336708755,1725052554118,1000.0,0.00010183,2]
[336708756,1725052597923,250.0,0.00010215,2]
[336708757,1725052603076,231.0513,0.0001086,2]
[336708758,1725052643188,250.48392768,0.00010899,2]
[336708760,1725052655058,191.25,0.00010959,2]
[336708762,1725052827582,285.85,0.00010151,2]
[336708763,1725052846673,207.69,0.00010151,2]
[336708764,1725052863909,4648.75,0.00010144,2]
[336708765,1725052951087,360.19391,0.0001086,2]
[336708766,1725052983314,1050.0,0.0001,2]
[336708767,1725053016469,500.0,9.92e-05,2]
[336708768,1725053047115,192.63,8.226e-05,2]
[336708769,1725053047350,192.63,0.0001049,2]
[336708770,1725053069632,225.43553493,0.00010899,2]
[336708771,1725053114627,250.0,0.00010148,2]
[336708772,1725053136146,160.51470132,0.00010873,2]
[336708773,1725053181060,1000.0,0.00010172,2]
[336708774,1725053219360,15521.7958175,0.0001088,2]
[336708775,1725053299148,192.54275,0.0001086,2]
[336708776,1725053310977,192.14261377,0.0001087,2]
[336708777,1725053337627,212.6,0.00010211,2]
[336708780,1725053391427,232.78314192,0.00010873,2]
[336708787,1725053431655,-330.8958496,0.00010963,2]
[336708789,1725053431665,-150.67,0.00010963,2]
[336708791,1725053431675,-150.0,0.00010971,2]
[336708793,1725053431684,-1076.33197959,0.00010972,3]
[336708794,1725053431694,-40.9054652,0.00010972,2]
[336708795,1725053431706,-359.57559272,0.00010972,2]
[336708796,1725053431717,-438.97982347,0.00010972,2]
[336708798,1725053437770,-247.85809246,0.0001097,2]
[336708799,1725053437780,-5079.84480126,0.00010972,2]
[336708800,1725053437789,-4604.90942111,0.00010972,2]
[336708801,1725053437893,-9529.45094769,0.00010972,2]
[336708802,1725053437906,-2036.0919597,0.00010972,2]
[336708803,1725053437916,-35452.91,0.00010972,2]
[336708804,1725053437926,-3135.0748159,0.00010972,2]
[336708805,1725053437935,-528.0,0.00010972,2]
[336708806,1725053437946,-34288.87725259,0.00010972,2]
[336708807,1725053437958,-1822.90063496,0.00010972,2]
[336708808,1725053437999,-283.83287331,0.00010972,2]
[336708909,1725053439873,-1214.79818361,0.00010972,2]
[336708910,1725053439980,-6618.563923,0.00010972,2]
[336708971,1725053444111,-29603.99999999,0.00010972,2]
[336708974,1725053445756,-369.65907477,0.00010972,2]
[336708975,1725053445883,-571.92540426,0.00010972,2]
[336708976,1725053445946,-2132.53926055,0.00010972,2]
[336708977,1725053445956,-17419.93453945,0.00010973,2]
[336709030,1725053454828,12358.5857,0.00010872,2]
[336709031,1725053496350,202.89198141,0.00010899,2]
[336709032,1725053499323,768.83,0.00010657,2]
[336709033,1725053527148,12307.8782,0.00010862,2]
[336709034,1725053533274,202439.7034,0.00010873,2]
[336709036,1725053556587,1497.70175914,0.00010872,2]
[336709037,1725053560385,605.54,0.00010539,2]
[336709038,1725053607395,250.0,0.00010483,2]
[336709039,1725053619841,500.0,0.00010455,2]
[336709040,1725053625537,190.73,8.565e-05,2]
[336709041,1725053625781,190.73,0.00010829,2]
[336709042,1725053647264,300.16159,0.0001086,2]
[336709043,1725053687361,6607.87,0.00010479,2]
[336709044,1725053697129,200.0,0.00010479,2]
[336709045,1725053732362,646.89,0.00010256,2]
[336709046,1725053735066,346.3,0.0001096,2]
[336709047,1725053735278,346.3,0.0001096,2]
[336709048,1725053735490,346.3,0.0001096,2]
[336709049,1725053735728,346.3,0.0001096,2]
[336709050,1725053736277,346.3,0.0001096,2]
[336709051,1725053736494,346.3,0.0001096,2]
[336709052,1725053736712,346.3,0.0001096,2]
[336709053,1725053736936,346.3,0.0001096,2]
[336709054,1725053737150,346.3,0.0001096,2]
[336709055,1725053737366,346.3,0.0001096,2]
[336709056,1725053737593,346.3,0.0001096,2]
[336709057,1725053737821,346.3,0.0001096,2]
[336709058,1725053738033,346.3,0.0001096,2]
[336709059,1725053738248,346.3,0.0001096,2]
[336709060,1725053738479,346.3,0.0001096,2]
[336709061,1725053738729,346.3,0.0001096,2]
[336709062,1725053738946,346.3,0.0001096,2]
[336709063,1725053739159,346.3,0.0001096,2]
[336709064,1725053739372,346.3,0.0001096,2]
[336709065,1725053739589,346.3,0.0001096,2]
[336709066,1725053739799,346.3,0.0001096,2]
[336709067,1725053740019,346.3,0.0001096,2]
[336709068,1725053740259,346.3,0.0001096,2]
[336709069,1725053740472,346.3,0.0001096,2]
[336709070,1725053740709,346.3,0.0001096,2]
[336709071,1725053740921,346.3,0.0001096,2]
[336709072,1725053741144,346.3,0.0001096,2]
[336709073,1725053741368,346.3,0.0001096,2]
[336709074,1725053741574,346.3,0.0001096,2]
[336709075,1725053741908,346.3,0.0001096,2]
[336709076,1725053742141,346.3,0.0001096,2]
[336709077,1725053742394,346.3,0.0001096,2]
[336709078,1725053742603,346.3,0.0001096,2]
[336709079,1725053742821,346.3,0.0001096,2]
[336709080,1725053743037,346.3,0.0001096,2]
[336709081,1725053744017,346.3,0.0001096,2]
[336709082,1725053744051,346.3,0.0001096,2]
[336709083,1725053744082,346.3,0.0001096,2]
[336709084,1725053744185,346.3,0.0001096,2]
[336709085,1725053744223,346.3,0.0001096,2]
[336709086,1725053744418,346.3,0.0001096,2]
[336709087,1725053744640,346.3,0.0001096,2]
[336709088,1725053744858,346.3,0.0001096,2]
[336709089,1725053745072,346.3,0.0001096,2]
[336709090,1725053745301,346.3,0.0001096,2]
[336709091,1725053745505,346.3,0.0001096,2]
[336709092,1725053745711,346.3,0.0001096,2]
[336709093,1725053745918,346.3,0.0001096,2]
[336709094,1725053746449,346.3,0.0001096,2]
[336709095,1725053746692,346.3,0.0001096,2]
[336709096,1725053798401,178.79,0.00010256,2]
[336709097,1725053862608,1590.37,0.00010306,2]
[336709098,1725053898892,191.32,0.00010376,2]
[336709099,1725053922347,182.60278335,0.00010899,2]
[336709100,1725053964669,23597.11,0.00010313,2]
[336709101,1725053969940,480.19,0.00010959,2]
[336709102,1725053995408,160.4523,0.0001086,2]
[336709103,1725054008563,201.48,0.0001096,2]
[336709104,1725054008800,201.48,0.0001096,2]
[336709105,1725054009118,201.48,0.0001096,2]
[336709106,1725054009343,201.48,0.0001096,2]
[336709107,1725054009571,201.48,0.0001096,2]
[336709108,1725054009792,201.48,0.0001096,2]
[336709109,1725054010017,201.48,0.0001096,2]
[336709110,1725054010233,201.48,0.0001096,2]
[336709111,1725054010460,201.48,0.0001096,2]
[336709112,1725054010677,201.48,0.0001096,2]
[336709113,1725054010906,201.48,0.0001096,2]
[336709114,1725054011135,201.48,0.0001096,2]
[336709115,1725054011363,201.48,0.0001096,2]
[336709116,1725054011685,201.48,0.0001096,2]
[336709117,1725054011927,201.48,0.0001096,2]
[336709118,1725054012135,201.48,0.0001096,2]
[336709119,1725054012376,201.48,0.0001096,2]
[336709120,1725054012589,201.48,0.0001096,2]
[336709121,1725054012863,201.48,0.0001096,2]
[336709122,1725054013065,201.48,0.0001096,2]
[336709123,1725054091789,250.0,0.00010128,2]
[336709125,1725054116840,181.68,0.00010959,2]
[336709126,1725054122699,171.65,8.219e-05,2]
[336709127,1725054122908,171.65,0.00010482,2]
[336709128,1725054127496,302.77,0.00010108,2]
[336709129,1725054308211,150.0,0.00010932,2]
[336709130,1725054343519,250.13466,0.0001086,2]
[336709131,1725054346816,1000.0,0.00010129,2]
[336709132,1725054350569,164.34250497,0.00010899,2]
[336709134,1725054381430,160.51470132,0.00010872,2]
[336709135,1725054395700,150.0,9.863e-05,2]
[336709139,1725054631921,-2063.08810195,0.00010967,2]
[336709140,1725054632047,-2669.83732712,0.00010967,2]
[336709141,1725054632174,-342.69485996,0.00010967,2]
[336709142,1725054632185,-1749.11601781,0.00010967,2]
[336709143,1725054632195,-150.0,0.00010968,2]
[336709144,1725054632204,-300.0,0.00010968,2]
[336709145,1725054632214,-500.0,0.00010969,2]
[336709146,1725054632223,-500.0,0.00010969,2]
[336709147,1725054632233,-500.0,0.00010969,2]
[336709148,1725054632243,-381.58579996,0.00010969,2]
[336709149,1725054632252,-638.55958288,0.00010969,2]
[336709150,1725054632261,-25076.94373431,0.00010969,2]